fUSD/lending_fUSD_20260205
["ID","MTS","AMOUNT","RATE_DAILY","PERIOD"]
[404593735,1770321041010,-500.0,0.00014391,2]
[404593736,1770321041021,-500.0,0.00014391,2]
[404593737,1770321041031,-500.0,0.00014391,2]
[404593738,1770321041041,-500.0,0.00014391,2]
[404593739,1770321041053,-500.0,0.00014391,2]
[404593740,1770321041063,-500.0,0.00014391,2]
[404593741,1770321041073,-500.0,0.00014391,2]
[404593742,1770321041082,-500.0,0.00014391,2]
[404593743,1770321041092,-500.0,0.00014391,2]
[404593744,1770321041101,-200.0,0.00014391,2]
[404593745,1770321041111,-500.0,0.00014399,2]
[404593746,1770321041122,-299.99,0.00014399,2]
[404593747,1770321041131,-3513.65,0.00014399,2]
[404593748,1770321041141,-6248.25,0.00014399,2]
[404593749,1770321041151,-150.99,0.00014399,2]
[404593750,1770321041160,-150.99,0.00014399,2]
[404593751,1770321041170,-500.0,0.000146,2]
[404593752,1770321041180,-1000.0,0.00014918,2]
[404593753,1770321041189,-200.0,0.00014939,2]
[404593754,1770321041198,-200.0,0.00014939,2]
[404593755,1770321041207,-250.0,0.00015,2]
[404593756,1770321041216,-496.77440721,0.00015148,2]
[404593757,1770321041227,-1510.52,0.00015187,2]
[404593758,1770321041238,-1000.0,0.00015221,2]
[404593759,1770321041248,-524.0,0.00015261,2]
[404593760,1770321041260,-1195.0,0.00015452,2]
[404593761,1770321041271,-448.0,0.00015452,2]
[404593762,1770321041281,-200.0,0.00015487,2]
[404593763,1770321041291,-200.0,0.00015487,2]
[404593764,1770321041302,-255.0,0.00015512,2]
[404593765,1770321041311,-195.0,0.00015553,2]
[404593766,1770321041322,-300.0,0.00015553,2]
[404593767,1770321041332,-2500.0,0.00015553,2]
[404593768,1770321041342,-300.0,0.00015553,2]
[404593769,1770321041351,-420.0,0.00015553,2]
[404593770,1770321041365,-195.0,0.00015619,2]
[404593771,1770321041374,-500.0,0.00015619,2]
[404593772,1770321041383,-300.0,0.00015619,2]
[404593773,1770321041392,-150.56828751,0.00015619,2]
[404593774,1770321041402,-1680.0,0.00015619,2]
[404593775,1770321041411,-600.0,0.0001562,2]
[404593776,1770321041421,-250.0,0.00015727,2]
[404593777,1770321041430,-2500.0,0.00015727,2]
[404593778,1770321041440,-250.0,0.00015728,2]
[404593779,1770321041449,-1321.29,0.00015815,2]
[404593780,1770321041459,-1000.0,0.00015828,2]
[404593781,1770321041469,-200.0,0.00015886,2]
[404593782,1770321041479,-2566.41551652,0.0001596,2]
[404593783,1770321041488,-200.0,0.00016035,2]
[404593784,1770321041501,-200.0,0.00016035,2]
[404593785,1770321041511,-160.0,0.00016365,2]
[404593786,1770321041520,-500.0,0.00016438,2]
[404593787,1770321041530,-500.0,0.00016438,2]
[404593788,1770321041539,-500.0,0.00016438,2]
[404593789,1770321041548,-500.0,0.00016438,2]
[404593790,1770321041558,-500.0,0.00016438,2]
[404593791,1770321041568,-500.0,0.00016438,2]
[404593792,1770321041578,-500.0,0.00016438,2]
[404593793,1770321041587,-500.0,0.00016438,2]
[404593794,1770321041597,-500.0,0.00016438,2]
[404593795,1770321041606,-500.0,0.00016438,2]
[404593796,1770321041615,-500.0,0.00016438,2]
[404593797,1770321041625,-500.0,0.00016438,2]
[404593798,1770321041634,-500.0,0.00016438,2]
[404593799,1770321041644,-500.0,0.00016438,2]
[404593800,1770321041654,-500.0,0.00016438,2]
[404593801,1770321041665,-500.0,0.00016438,2]
[404593802,1770321041675,-500.0,0.00016438,2]
[404593803,1770321041687,-500.0,0.00016438,2]
[404593804,1770321041697,-511.10244758,0.00016438,2]
[404593805,1770321041706,-500.0,0.00016438,2]
[404593806,1770321041715,-500.0,0.00016438,2]
[404593807,1770321041725,-500.0,0.00016438,2]
[404593808,1770321041734,-500.0,0.00016438,2]
[404593809,1770321041744,-500.0,0.00016438,2]
[404593810,1770321041754,-500.0,0.00016438,2]
[404593811,1770321041763,-500.0,0.00016438,2]
[404593812,1770321041773,-500.0,0.00016438,2]
[404593813,1770321041789,-500.0,0.00016438,2]
[404593814,1770321041798,-500.0,0.00016438,2]
[404593815,1770321041807,-500.0,0.00016438,2]
[404593816,1770321041817,-500.0,0.00016438,2]
[404593817,1770321041826,-500.0,0.00016438,2]
[404593818,1770321041835,-500.0,0.00016438,2]
[404593819,1770321041845,-500.0,0.00016438,2]
[404593820,1770321041854,-4148.21126129,0.00016546,2]
[404593821,1770321041863,-200.0,0.00016583,2]
[404593822,1770321041873,-200.0,0.00016583,2]
[404593823,1770321041882,-984.0,0.00016656,2]
[404593824,1770321041891,-152.01739561,0.00016679,2]
[404593825,1770321041900,-433.0,0.00016721,2]
[404593826,1770321041909,-500.0,0.00016782,2]
[404593827,1770321041919,-158.26,0.00016818,2]
[404593828,1770321041928,-4060.9,0.00016912,2]
[404593829,1770321041937,-300.0,0.00017,2]
[404593830,1770321041947,-500.0,0.00017009,2]
[404593831,1770321041955,-180.0,0.00017035,2]
[404593832,1770321041965,-1000.0,0.00017124,2]
[404593833,1770321041974,-200.0,0.00017131,2]
[404593834,1770321041983,-2351.0,0.00017181,2]
[404593835,1770321041992,-500.0,0.00017507,2]
[404593836,1770321042001,-1513.43,0.0001769,2]
[404593837,1770321042012,-250.0,0.00017705,2]
[404593838,1770321042021,-166.66,0.00017712,2]
[404593839,1770321042030,-1321.29,0.00017792,2]
[404593840,1770321042039,-500.0,0.00017973,2]
[404593841,1770321042048,-266.71138418,0.00017973,2]
[404593842,1770321042058,-507.08166095,0.00017973,2]
[404593843,1770321042067,-500.0,0.00017973,2]
[404593844,1770321042075,-506.0,0.0001801,2]
[404593845,1770321042085,-272.0,0.0001803,2]
[404593846,1770321042095,-2500.0,0.00018196,2]
[404593847,1770321042104,-149235.42,0.00018296,2]
[404593848,1770321042113,-166.66,0.00018296,2]
[404593849,1770321042122,-369.15342078,0.00018338,2]
[404593850,1770321042131,-1000.0,0.00018521,2]
[404593851,1770321042141,-510.13526908,0.00018521,2]
[404593852,1770321042150,-166.66,0.00018881,2]
[404593853,1770321042159,-704.0,0.00018899,2]
[404593854,1770321042168,-506.0,0.00018909,2]
[404593855,1770321042177,-4148.21126129,0.00018952,2]
[404593856,1770321042186,-350.0,0.00019,2]
[404593857,1770321042195,-1000.0,0.00019026,2]
[404593858,1770321042204,-498.88047735,0.00019068,2]
[404593859,1770321042213,-234.8731037,0.00019082,2]
[404593860,1770321042222,-500.0,0.00019259,2]
[404593861,1770321042231,-18264.9811846,0.00019407,2]
[404593862,1770321042240,-166.66,0.00019466,2]
[404593863,1770321042249,-1321.29,0.00019769,2]
[404593864,1770321042260,-506.0,0.00019807,3]
[404593865,1770321042270,-150.0,0.00019973,2]
[404593866,1770321042279,-166.66,0.0002005,2]
[404593867,1770321042288,-250.0,0.00020521,2]
[404593868,1770321042297,-21547.78,0.00020548,2]
[404593869,1770321042306,-419.12847376,0.00020576,2]
[404593870,1770321042315,-10661.5444,0.00020577,2]
[404593871,1770321042325,-216.1328103,0.00020595,2]
[404593872,1770321042334,-166.66,0.00020635,2]
[404593873,1770321042343,-241.23,0.00020665,2]
[404593874,1770321042353,-500.0,0.00020673,2]
[404593875,1770321042362,-500.0,0.00020676,2]
[404593876,1770321042371,-301695.5919104,0.00020677,2]
[404593877,1770321042381,-155.22993895,0.00020695,2]
[404593878,1770321042390,-506.0,0.00020705,4]
[404593879,1770321042400,-155.22993895,0.00020798,2]
[404593880,1770321042410,-1000.0,0.000209,7]
[404593881,1770321042419,-1000.0,0.00020929,2]
[404593882,1770321042430,-241.23,0.00020939,2]
[404593883,1770321042439,-150.0,0.00020973,2]
[404593884,1770321042449,-169.2,0.00021,7]
[404593885,1770321042459,-400.0,0.00021,2]
[404593886,1770321042468,-12531.06,0.00021068,2]
[404593887,1770321042479,-151.0,0.00021182,2]
[404593888,1770321042488,-1503.0,0.00021185,2]
[404593889,1770321042497,-153.0,0.00021185,2]
[404593890,1770321042510,-1503.0,0.00021185,2]
[404593891,1770321042519,-159.15241189,0.00021185,2]
[404593892,1770321042529,-151.0,0.00021185,2]
[404593893,1770321042538,-153.0,0.00021185,2]
[404593894,1770321042547,-1503.0,0.00021185,2]
[404593895,1770321042556,-300.0,0.00021185,2]
[404593896,1770321042566,-151.0,0.00021185,2]
[404593897,1770321042575,-153.0,0.00021185,2]
[404593898,1770321042584,-1503.0,0.00021185,2]
[404593899,1770321042594,-151.0,0.00021185,2]
[404593900,1770321042603,-153.0,0.00021185,2]
[404593901,1770321042612,-1503.0,0.00021185,2]
[404593902,1770321042622,-151.0,0.00021185,2]
[404593903,1770321042632,-153.0,0.00021185,2]
[404593904,1770321042641,-1503.0,0.00021185,2]
[404593905,1770321042651,-151.0,0.00021185,2]
[404593906,1770321042660,-153.0,0.00021185,2]
[404593907,1770321042670,-1503.0,0.00021185,2]
[404593908,1770321042680,-153.0,0.00021185,2]
[404593909,1770321042691,-1503.0,0.00021185,2]
[404593910,1770321042700,-151.0,0.00021185,2]
[404593911,1770321042709,-153.0,0.00021185,2]
[404593912,1770321042718,-1503.0,0.00021185,2]
[404593914,1770321042728,-153.0,0.00021185,2]
[404593915,1770321042737,-151.0,0.00021185,2]
[404593916,1770321042747,-1503.0,0.00021185,2]
[404593917,1770321042763,-153.0,0.00021185,2]
[404593918,1770321042773,-151.0,0.00021185,2]
[404593919,1770321042782,-153.0,0.00021185,2]
[404593920,1770321042791,-151.0,0.00021185,2]
[404593921,1770321042801,-1503.0,0.00021185,2]
[404593922,1770321042810,-151.0,0.00021185,2]
[404593923,1770321042820,-153.0,0.00021185,2]
[404593924,1770321042829,-1503.0,0.00021185,2]
[404593925,1770321042838,-151.0,0.00021185,2]
[404593926,1770321042848,-153.0,0.00021185,2]
[404593927,1770321042858,-1503.0,0.00021185,2]
[404593928,1770321042867,-153.0,0.00021185,2]
[404593929,1770321042876,-1503.0,0.00021185,2]
[404593930,1770321042885,-151.0,0.00021185,2]
[404593931,1770321042894,-153.0,0.00021185,2]
[404593932,1770321042903,-1503.0,0.00021185,2]
[404593933,1770321042913,-151.0,0.00021185,2]
[404593934,1770321042922,-153.0,0.00021185,2]
[404593935,1770321042933,-1503.0,0.00021185,2]
[404593936,1770321042942,-151.0,0.00021185,2]
[404593937,1770321042951,-153.0,0.00021185,2]
[404593938,1770321042960,-1503.0,0.00021185,2]
[404593939,1770321042970,-153.0,0.00021185,2]
[404593940,1770321042979,-151.0,0.00021185,2]
[404593941,1770321042988,-1503.0,0.00021185,2]
[404593942,1770321042997,-153.0,0.00021185,2]
[404593943,1770321043011,-151.0,0.00021185,2]
[404593944,1770321043020,-1503.0,0.00021185,2]
[404593945,1770321043030,-153.0,0.00021185,2]
[404593946,1770321043040,-151.0,0.00021185,2]
[404593947,1770321043049,-1503.0,0.00021185,2]
[404593948,1770321043058,-244.32691947,0.00021185,2]
[404593949,1770321043067,-1503.0,0.00021185,2]
[404593950,1770321043076,-151.0,0.00021185,2]
[404593951,1770321043086,-1503.0,0.00021185,2]
[404593952,1770321043096,-151.0,0.00021185,2]
[404593953,1770321043105,-151.0,0.00021185,2]
[404593954,1770321043114,-1503.0,0.00021185,2]
[404593955,1770321043124,-151.0,0.00021185,2]
[404593956,1770321043134,-1503.0,0.00021185,2]
[404593957,1770321043143,-151.0,0.00021185,2]
[404593958,1770321043152,-1503.0,0.00021185,2]
[404593959,1770321043161,-151.0,0.00021185,2]
[404593960,1770321043171,-1503.0,0.00021185,2]
[404593961,1770321043181,-151.0,0.00021185,2]
[404593962,1770321043191,-1503.0,0.00021185,2]
[404593963,1770321043200,-151.0,0.00021185,2]
[404593964,1770321043209,-1503.0,0.00021185,2]
[404593965,1770321043218,-151.0,0.00021185,2]
[404593966,1770321043227,-1503.0,0.00021185,2]
[404593967,1770321043236,-151.0,0.00021185,2]
[404593968,1770321043246,-1503.0,0.00021185,2]
[404593969,1770321043257,-151.0,0.00021185,2]
[404593970,1770321043266,-1503.0,0.00021185,2]
[404593971,1770321043275,-151.0,0.00021185,2]
[404593972,1770321043285,-1503.0,0.00021185,2]
[404593973,1770321043294,-151.0,0.00021185,2]
[404593974,1770321043303,-1503.0,0.00021185,2]
[404593975,1770321043313,-1503.0,0.00021185,2]
[404593976,1770321043322,-151.0,0.00021185,2]
[404593977,1770321043331,-1503.0,0.00021185,2]
[404593978,1770321043340,-151.0,0.00021185,2]
[404593980,1770321043349,-1503.0,0.00021185,2]
[404593982,1770321043359,-151.0,0.00021185,2]
[404593984,1770321043368,-1503.0,0.00021185,2]
[404593986,1770321043378,-151.0,0.00021185,2]
[404593987,1770321043387,-1503.0,0.00021185,2]
[404593989,1770321043397,-151.0,0.00021185,2]
[404593992,1770321043406,-1503.0,0.00021185,2]
[404593995,1770321043416,-219.57396025,0.00021185,2]
[404594012,1770321044386,-1283.42603975,0.00021185,2]
[404594013,1770321044396,-151.0,0.00021185,2]
[404594014,1770321044406,-1503.0,0.00021185,2]
[404594015,1770321044415,-151.0,0.00021185,2]
[404594016,1770321044425,-971.76050536,0.00021185,2]
[404594017,1770321044437,-531.23949464,0.00021185,2]
[404594018,1770321044447,-151.0,0.00021185,2]
[404594019,1770321044457,-1503.0,0.00021185,2]
[404594020,1770321044467,-151.0,0.00021185,2]
[404594021,1770321044476,-1503.0,0.00021185,2]
[404594022,1770321044486,-154.02083019,0.00021185,2]
[404594023,1770321044496,-1503.0,0.00021185,2]
[404594024,1770321044509,-1503.0,0.00021185,2]
[404594025,1770321044519,-167.70093456,0.00021185,2]
[404594026,1770321044530,-466.0,0.00021209,2]
[404594027,1770321044539,-241.23,0.00021213,2]
[404594028,1770321044549,-466.0,0.00021234,2]
[404594029,1770321044559,-316.0,0.00021243,2]
[404594030,1770321044568,-466.0,0.00021266,2]
[404594031,1770321044578,-466.0,0.00021305,2]
[404594032,1770321044588,-466.0,0.00021312,2]
[404594033,1770321044598,-466.0,0.00021315,2]
[404594034,1770321044608,-1335.0,0.00021339,2]
[404594035,1770321044619,-144.80874061,0.00021339,2]
[404594036,1770321044631,-1266.19125939,0.00021339,2]
[404594037,1770321044640,-616.0,0.00021339,2]
[404594038,1770321044650,-98.34686261,0.00021339,2]
[404594039,1770321044727,-3383.65313739,0.00021339,2]
[404594040,1770321044738,-330.33824732,0.00021339,2]
[404594041,1770321044753,-874.66175268,0.00021339,2]
[404594042,1770321044765,-710.24767884,0.00021339,2]
[404594044,1770321046179,-152.01739562,0.00016732,2]
[404594045,1770321046189,-200.06895439,0.00021339,2]
[404594046,1770321046229,-360.68336677,0.00021339,2]
[404594047,1770321046238,-917.0,0.00021339,2]
[404594048,1770321046248,-6581.0,0.00021339,2]
[404594049,1770321046262,-922.27140715,0.00021339,2]
[404594050,1770321046283,-1523.72859285,0.00021339,2]
[404594051,1770321046292,-3254.0,0.00021339,2]
[404594052,1770321046302,-4148.21126129,0.00021359,2]
[404594053,1770321046311,-4157.86032462,0.0002137,2]
[404594054,1770321046322,-265.32,0.00021466,2]
[404594055,1770321046331,-241.23,0.00021487,2]
[404594056,1770321046341,-500.0,0.00021499,2]
[404594057,1770321046350,-47086.81700075,0.000215,2]
[404594064,1770321074117,10000.01,0.000142,2]
[404594065,1770321074143,10000.01,0.000142,2]
[404594066,1770321074169,5000.01,0.000142,2]
[404594067,1770321080514,-9302.66392718,0.000142,2]
[404594068,1770321080618,-10000.01,0.000142,2]
[404594070,1770321139463,500.0,0.0001601,30]
[404594071,1770321139953,500.0,0.0001601,30]
[404594072,1770321140421,800.0,0.00016,30]
[404594073,1770321141782,500.0,0.0001601,30]
[404594074,1770321142301,500.0,0.0001601,30]
[404594075,1770321142772,500.0,0.0001601,30]
[404594076,1770321143314,500.0,0.0001601,30]
[404594078,1770321143812,500.0,0.0001601,30]
[404594079,1770321144363,500.0,0.0001601,30]
[404594080,1770321144848,500.0,0.00016,30]
[404594081,1770321145351,500.0,0.00016,30]
[404594082,1770321145823,500.0,0.00016,30]
[404594083,1770321146310,500.0,0.00016,30]
[404594084,1770321146728,500.0,0.0001601,30]
[404594085,1770321146786,845.47239122,0.00016,30]
[404594086,1770321147349,500.0,0.00016,30]
[404594087,1770321151894,500.0,0.0001601,30]
[404594095,1770321539667,-3443.58152722,0.00014061,2]
[404594096,1770321604028,267.0,0.00014148,2]
[404594097,1770321676311,-500.0,0.00014161,2]
[404594098,1770321691544,-250.0,0.00014167,2]
[404594099,1770321706727,-193.0,0.00014173,2]
[404594100,1770321721915,-250.0,0.00014186,2]
[404594101,1770321737108,-500.0,0.00014197,2]
[404594102,1770321752331,-292.81131123,0.00014198,2]
[404594106,1770322056628,-162.4674,0.00014199,2]
[404594107,1770322056658,-500.0,0.00014199,2]
[404594108,1770322056688,-500.0,0.00014199,2]
[404594109,1770322056716,-500.0,0.00014199,2]
[404594110,1770322056746,-167.32974724,0.000146,2]
[404594111,1770322056793,-500.0,0.000146,2]
[404594112,1770322056823,-474.87876672,0.000146,2]
[404594113,1770322056852,-2000.0,0.000146,5]
[404594114,1770322057431,-4000.0,0.000147,5]
[404594115,1770322057600,-140.65817208,0.000148,5]
[404594116,1770322057620,-2000.01,0.000148,5]
[404594118,1770322059550,-3959.33182792,0.000148,5]
[404594119,1770322059588,-2081.34634416,0.000149,5]
[404594120,1770322062600,-3981.35634416,0.000149,5]
[404594121,1770322062623,-2037.29731168,0.000149,5]
[404594127,1770322232162,-7137.16596989,0.00015241,2]
[404594128,1770322232216,-1431.55403011,0.00015241,2]
[404594129,1770322232226,-556.32581,0.0001527,2]
[404594130,1770322232236,-277.0,0.0001527,2]
[404594131,1770322232246,-250.0,0.00015347,2]
[404594132,1770322232256,-300.0,0.0001536,2]
[404594133,1770322232265,-1200.0,0.0001536,2]
[404594134,1770322232275,-2137.68635111,0.00015361,2]
[404594135,1770322232284,-2488.92675681,0.00015361,2]
[404594136,1770322232294,-276.86506562,0.00015361,2]
[404594137,1770322232304,-228.91735094,0.00015377,2]
[404594138,1770322232312,-6217.62853099,0.00015377,2]
[404594139,1770322232322,-241.52807675,0.00015377,2]
[404594140,1770322232331,-150.0,0.00015408,2]
[404594141,1770322232341,-1200.0,0.00015409,2]
[404594142,1770322232350,-500.0,0.00015409,2]
[404594143,1770322232360,-500.0,0.00015409,2]
[404594144,1770322232369,-500.0,0.00015409,2]
[404594145,1770322232379,-500.0,0.00015409,2]
[404594146,1770322232389,-500.0,0.00015409,2]
[404594147,1770322232399,-500.0,0.00015409,2]
[404594148,1770322232408,-500.0,0.00015409,2]
[404594149,1770322232421,-500.0,0.00015409,2]
[404594150,1770322232431,-500.0,0.00015409,2]
[404594152,1770322232441,-553.09491494,0.00015409,2]
[404594154,1770322232451,-500.0,0.00015409,2]
[404594156,1770322232460,-500.0,0.00015409,2]
[404594159,1770322232470,-1105.1100423,0.00015409,2]
[404594160,1770322232479,-1105.1100423,0.00015409,2]
[404594162,1770322232488,-1105.1100423,0.00015409,2]
[404594164,1770322232497,-1105.1100423,0.00015409,2]
[404594166,1770322232508,-1105.1100423,0.00015409,2]
[404594168,1770322232517,-1105.1100423,0.00015409,2]
[404594170,1770322232526,-1105.1100423,0.00015409,2]
[404594172,1770322232536,-1105.1100423,0.00015409,2]
[404594174,1770322232545,-1105.1100423,0.00015409,2]
[404594176,1770322232555,-1105.1100423,0.00015409,2]
[404594178,1770322232564,-1105.1100423,0.00015409,2]
[404594180,1770322232573,-1105.1100423,0.00015409,2]
[404594182,1770322232583,-1105.1100423,0.00015409,2]
[404594184,1770322232592,-1105.1100423,0.00015409,2]
[404594186,1770322232602,-1105.1100423,0.00015409,2]
[404594188,1770322232611,-1105.1100423,0.00015409,2]
[404594190,1770322232621,-1105.1100423,0.00015409,2]
[404594192,1770322232630,-1105.1100423,0.00015409,2]
[404594194,1770322232639,-1105.1100423,0.00015409,2]
[404594197,1770322232648,-1105.1100423,0.00015409,2]
[404594199,1770322232658,-1105.1100423,0.00015409,2]
[404594202,1770322232669,-1105.1100423,0.00015409,2]
[404594205,1770322232679,-1105.1100423,0.00015409,2]
[404594207,1770322232688,-1105.1100423,0.00015409,2]
[404594210,1770322232698,-1105.1100423,0.00015409,2]
[404594213,1770322232707,-1105.1100423,0.00015409,2]
[404594215,1770322232716,-1105.1100423,0.00015409,2]
[404594218,1770322232725,-1105.1100423,0.00015409,2]
[404594220,1770322232734,-1105.1100423,0.00015409,2]
[404594223,1770322232744,-1105.1100423,0.00015409,2]
[404594226,1770322232754,-1105.1100423,0.00015409,2]
[404594228,1770322232763,-1105.1100423,0.00015409,2]
[404594230,1770322232772,-1105.1100423,0.00015409,2]
[404594232,1770322232782,-1105.1100423,0.00015409,2]
[404594234,1770322232792,-1105.1100423,0.00015409,2]
[404594236,1770322232801,-1105.1100423,0.00015409,2]
[404594238,1770322232810,-1105.1100423,0.00015409,2]
[404594240,1770322232819,-1105.1100423,0.00015409,2]
[404594242,1770322232830,-1105.1100423,0.00015409,2]
[404594244,1770322232839,-1105.1100423,0.00015409,2]
[404594246,1770322232848,-1105.1100423,0.00015409,2]
[404594248,1770322232858,-1105.1100423,0.00015409,2]
[404594250,1770322232867,-1105.1100423,0.00015409,2]
[404594252,1770322232876,-1105.1100423,0.00015409,2]
[404594254,1770322232886,-1105.1100423,0.00015409,2]
[404594256,1770322232895,-1105.1100423,0.00015409,2]
[404594258,1770322232905,-1105.1100423,0.00015409,2]
[404594260,1770322232915,-1105.1100423,0.00015409,2]
[404594262,1770322232924,-1105.1100423,0.00015409,2]
[404594264,1770322232934,-1105.1100423,0.00015409,2]
[404594266,1770322232943,-1105.1100423,0.00015409,2]
[404594268,1770322232952,-1105.1100423,0.00015409,2]
[404594270,1770322232961,-1105.1100423,0.00015409,2]
[404594272,1770322232971,-1105.1100423,0.00015409,2]
[404594274,1770322232980,-1105.1100423,0.00015409,2]
[404594276,1770322232989,-1082.08691641,0.00015409,2]
[404594278,1770322233000,-1082.08691641,0.00015409,2]
[404594280,1770322233009,-1082.08691641,0.00015409,2]
[404594282,1770322233018,-1082.08691641,0.00015409,2]
[404594284,1770322233028,-1082.08691641,0.00015409,2]
[404594286,1770322233042,-1082.08691641,0.00015409,2]
[404594288,1770322233051,-1082.08691641,0.00015409,2]
[404594289,1770322233061,-1082.08691641,0.00015409,2]
[404594292,1770322233070,-1082.08691641,0.00015409,2]
[404594293,1770322233080,-1082.08691641,0.00015409,2]
[404594295,1770322233090,-1082.08691641,0.00015409,2]
[404594297,1770322233099,-1082.08691641,0.00015409,2]
[404594299,1770322233109,-1082.08691641,0.00015409,2]
[404594301,1770322233120,-1082.08691641,0.00015409,2]
[404594304,1770322233130,-1082.08691641,0.00015409,2]
[404594306,1770322233139,-1082.08691641,0.00015409,2]
[404594308,1770322233149,-1082.08691641,0.00015409,2]
[404594309,1770322233158,-1082.08691641,0.00015409,2]
[404594311,1770322233170,-1082.08691641,0.00015409,2]
[404594313,1770322233179,-1082.08691641,0.00015409,2]
[404594315,1770322233189,-1082.08691641,0.00015409,2]
[404594317,1770322233198,-1082.08691641,0.00015409,2]
[404594319,1770322233208,-1082.08691641,0.00015409,2]
[404594321,1770322233217,-1082.08691634,0.00015409,2]
[404594323,1770322233227,-203931.52545069,0.0001541,2]
[404594326,1770322233240,-8027.97513753,0.0001541,2]
[404594328,1770322233265,-52244.29246194,0.0001541,2]
[404594329,1770322233277,-254.05,0.0001541,2]
[404594330,1770322233288,-19563.3,0.0001541,2]
[404594331,1770322233300,-2259978.58514984,0.0001541,2]
[404594332,1770322233310,-197.44773227,0.00015477,2]
[404594333,1770322233319,-213.3210716,0.00015477,2]
[404594334,1770322233328,-9999.99,0.00015577,2]
[404594335,1770322233338,-9999.99,0.00015577,2]
[404594336,1770322233347,-4281.7222516,0.00015577,2]
[404594337,1770322233359,-2196.32295172,0.00015577,2]
[404594342,1770322238217,-1856.9,0.00015159,2]
[404594343,1770322238227,-367.27408572,0.00015377,2]
[404594344,1770322238271,-308.81944879,0.00015377,2]
[404594345,1770322238282,-80.19719277,0.00015377,2]
[404594346,1770322238291,-405.23280893,0.00015577,2]
[404594347,1770322238326,-12149.39198775,0.00015577,2]
[404594348,1770322238335,-1172.27969301,0.00015577,2]
[404594349,1770322238383,-6000.89731925,0.00015577,2]
[404594350,1770322238395,-2826.81298774,0.00015577,2]
[404594351,1770322238405,-344.05,0.00015577,2]
[404594352,1770322238414,-999.99,0.00015577,2]
[404594353,1770322238426,-2367.14701226,0.00015577,2]
[404594393,1770322240301,-2852.0797965,0.00015577,2]
[404594394,1770322240312,-4780.76319124,0.00015577,2]
[404594395,1770322240321,-150.99,0.00015577,2]
[404594396,1770322240330,-4999.99,0.00015577,2]
[404594397,1770322240339,-150.99,0.00015577,2]
[404594398,1770322240349,-744.62,0.000156,2]
[404594399,1770322240358,-9999.99,0.000156,2]
[404594400,1770322240367,-3069.31433534,0.00015619,2]
[404594401,1770322240376,-1264.71232027,0.00015619,2]
[404594402,1770322240386,-193.0,0.00015619,2]
[404594403,1770322240395,-250.0,0.00015619,2]
[404594404,1770322240405,-300.0,0.00015619,2]
[404594405,1770322240414,-216.72,0.00016099,2]
[404594406,1770322240424,-1147.0,0.00016183,2]
[404594407,1770322240433,-299.0,0.00016193,2]
[404594408,1770322240443,-166.66,0.000162,2]
[404594409,1770322240452,-537.0,0.00016216,2]
[404594410,1770322240462,-150.0,0.00016411,2]
[404594411,1770322240471,-2137.68635111,0.00016415,2]
[404594412,1770322240480,-2488.92675677,0.00016415,2]
[404594413,1770322240490,-151.0,0.00016428,2]
[404594414,1770322240499,-151.0,0.00016428,2]
[404594415,1770322240508,-151.0,0.00016428,2]
[404594416,1770322240517,-151.0,0.00016428,2]
[404594417,1770322240526,-151.0,0.00016428,2]
[404594418,1770322240536,-151.0,0.00016428,2]
[404594419,1770322240545,-151.0,0.00016428,2]
[404594420,1770322240554,-151.0,0.00016428,2]
[404594421,1770322240564,-151.0,0.00016428,2]